bitfinex/quotes_SOLUSD_20240725
["timestamp","ask_amount","ask_price","bid_price","bid_amount"]
[1721912092065,389.2,167.31,167.22,45.0]
[1721912092271,389.2,167.3,167.23,66.19574981]
[1721912092571,1.49468726,167.29,167.16,20.0]
[1721912092767,1.49468726,167.29,167.23,5.9794]
[1721912092768,7.47228726,167.29,167.23,5.9794]
[1721912092972,389.2,167.3,167.17,65.0]
[1721912093590,389.2,167.3,167.18,1.19595745]
[1721912093789,389.2,167.3,167.17,66.1957957]
[1721912093972,395.1772,167.3,167.25,5.979]
[1721912094169,389.2,167.3,167.25,5.979]
[1721912094677,389.2,167.3,167.26,5.9786]
[1721912095083,395.1772,167.3,167.24,5.979]
[1721912095389,5.9777,167.29,167.24,5.979]
[1721912095593,5.9777,167.29,167.22,5.98]
[1721912095594,5.9783,167.27,167.22,5.98]
[1721912095794,1.49504288,167.26,167.23,5.9796]
[1721912096092,389.2,167.3,167.17,66.19599636]
[1721912096292,7.47261633,167.29,167.24,5.9791]
[1721912096593,389.2,167.28,167.25,5.9787]
[1721912096891,389.2,167.28,167.27,5.9783]
[1721912097582,389.2,167.28,167.26,5.9787]
[1721912098589,389.2,167.28,167.24,5.9791]
[1721912098793,389.2,167.28,167.25,5.979]
[1721912099293,389.2,167.28,167.27,5.9783]
[1721912101782,389.2,167.28,167.27,50.9783]
[1721912101978,389.2,167.39,167.27,45.0]
[1721912102200,390.6939709,167.38,167.33,5.9761]
[1721912102494,395.1747,167.38,167.33,5.9759]
[1721912102697,1.4940921,167.37,167.28,20.0]
[1721912102876,5.9758,167.35,167.3,5.9772]
[1721912103472,1.49440649,167.37,167.24,20.0]
[1721912103672,1.49440649,167.37,167.23,1.19548564]
[1721912103673,389.2,167.36,167.26,5.9784]
[1721912103983,5.9766,167.32,167.28,5.9779]
[1721912104186,389.2,167.31,167.28,5.9779]
[1721912104402,395.1769,167.31,167.26,5.9785]
[1721912104603,395.1769,167.31,167.27,5.9783]
[1721912104977,1.49468021,167.3,167.24,5.9793]
[1721912105180,7.47258269,167.29,167.24,5.9793]
[1721912105705,389.2,167.28,167.14,15.9604]
[1721912105896,5.9794,167.24,167.19,5.9811]
[1721912106219,5.9794,167.24,167.12,1.19626296]
[1721912106508,20.0,167.23,167.18,5.9812]
[1721912106693,395.1783,167.27,167.22,5.9801]
[1721912106898,5.9794,167.25,167.2,5.9807]
[1721912107083,5.9794,167.25,167.11,7.33544653]
[1721912107084,20.0,167.24,167.11,7.33544653]
[1721912107279,390.69546306,167.23,167.11,6.1392]
[1721912107499,389.2,167.23,167.11,6.1392]
[1721912107706,5.9805,167.21,167.16,5.9822]
[1721912107882,5.981,167.2,167.14,5.9827]
[1721912108081,7.47666546,167.2,167.15,5.9823]
[1721912108385,5.9817,167.18,167.12,5.9834]
[1721912108605,1.49592027,167.17,167.12,5.9834]
[1721912108803,389.2,167.16,167.12,5.9834]
[1721912109504,395.1823,167.16,167.12,5.9834]
[1721912109678,395.1823,167.16,167.11,5.984]
[1721912109883,389.04185968,167.16,167.06,20.0]
[1721912110088,389.04185968,167.16,167.15,5.9826]
[1721912110502,389.04185968,167.16,167.14,5.983]
[1721912110889,389.04185968,167.16,167.15,5.9826]
[1721912111609,389.04185968,167.16,167.06,1.19655141]
[1721912111797,395.02425968,167.16,167.12,5.9836]
[1721912112118,389.04185968,167.16,167.13,5.9833]
[1721912112303,395.02425968,167.16,167.11,5.9837]
[1721912112895,389.04185968,167.16,167.12,5.9837]
[1721912113282,1.4959364,167.15,167.05,20.0]
[1721912113488,389.04185968,167.14,167.05,20.0]
[1721912113700,390.53808215,167.14,167.1,5.9843]
[1721912114314,389.04185968,167.14,167.12,5.9835]
[1721912114494,395.02415968,167.16,167.12,5.9835]
[1721912114696,389.04185968,167.16,167.12,5.9835]
[1721912114999,395.02435968,167.16,167.11,5.984]
[1721912115535,395.02435968,167.16,167.12,5.9837]
[1721912115819,395.02435968,167.16,167.11,5.984]
[1721912115994,389.04185968,167.16,167.05,20.0]
[1721912116188,14.9526,167.2,167.06,45.0]
[1721912116189,390.53790925,167.15,167.06,45.0]
[1721912116389,389.04185968,167.15,167.12,5.9835]
[1721912116620,389.04185968,167.16,167.12,5.9835]
[1721912116786,389.04185968,167.16,167.06,45.0]
[1721912116992,1.49619774,167.15,167.09,5.9847]
[1721912117204,389.04185968,167.16,167.12,5.9836]
[1721912117399,389.04185968,167.16,167.07,21.19678839]
[1721912117592,389.04185968,167.16,167.08,65.0]
[1721912117788,389.04185968,167.16,167.09,21.19662685]
[1721912117994,389.04185968,167.16,167.15,5.9826]
[1721912119302,389.04185968,167.16,167.08,65.0]
[1721912119511,389.04185968,167.16,167.15,5.9826]
[1721912120497,389.04185968,167.19,167.14,5.9829]
[1721912120705,1.49578911,167.18,167.13,5.9832]
[1721912120899,389.04185968,167.19,167.12,5.9836]
[1721912121207,5.9822,167.16,167.12,5.9836]
[1721912121615,5.982,167.17,167.12,5.9836]
[1721912122413,5.9823,167.16,167.12,5.9836]
[1721912122915,5.982,167.17,167.12,5.9836]
[1721912123308,5.982,167.17,167.13,5.9832]
[1721912123607,395.02305968,167.19,167.14,5.9829]
[1721912123805,20.0,167.18,167.14,5.9829]
[1721912124199,25.9816,167.18,167.13,5.9833]
[1721912124601,25.9816,167.18,167.14,5.9829]
[1721912126203,25.9816,167.18,167.13,5.9832]
[1721912126422,389.04185968,167.17,167.13,5.9832]
[1721912126912,389.04185968,167.17,167.04,24.00699673]
[1721912127115,14.9588,167.13,167.04,15.2718]
[1721912127314,5.9843,167.11,167.06,5.9857]
[1721912127513,16.45527,167.13,167.02,0.8024917]
[1721912127717,5.9848,167.09,167.02,0.8024917]
[1721912127915,5.9852,167.08,167.03,5.9867]
[1721912128108,5.9851,167.08,167.04,5.9864]
[1721912128429,5.9859,167.06,167.02,6.7893917]
[1721912128600,5.9859,167.06,167.02,0.8024917]
[1721912129022,20.0,167.12,167.02,0.8024917]
[1721912129023,389.04185968,167.05,167.02,0.8024917]
[1721912129421,12.5158,167.03,167.02,0.8024917]
[1721912129618,32.5158,167.03,167.02,0.8024917]
[1721912129925,32.5158,167.03,166.86,17.16229829]
[1721912129926,5.9891,166.97,166.86,17.16229829]
[1721912130127,389.2,166.96,166.86,15.9644]
[1721912130330,389.2,166.96,166.91,5.991]
[1721912130907,1.4977515,166.95,166.89,5.9916]
[1721912131100,7.4878515,166.95,166.89,5.9916]
[1721912131316,395.1895,166.96,166.91,5.991]
[1721912131523,389.2,166.96,166.86,17.16260133]
[1721912131732,389.2,166.96,166.94,5.9901]
[1721912132021,389.2,166.96,166.87,40.0]
[1721912132022,389.2,166.96,166.87,20.0]
[1721912132226,389.2,166.96,166.94,5.9899]
[1721912132924,389.2,166.96,166.87,20.0]
[1721912133127,5.9899,166.95,166.9,5.9914]
[1721912133433,410.6978181,166.94,166.85,0.8024917]
[1721912133743,410.6978181,166.94,166.87,5.9924]
[1721912133744,5.9911,166.92,166.87,5.9924]
[1721912134225,409.2,166.94,166.85,0.8024917]
[1721912134402,389.2,166.98,166.86,1.19832825]
[1721912134602,389.2,166.98,166.87,20.0]
[1721912134808,389.2,166.98,166.97,5.989]
[1721912135103,6.5289,167.03,166.9,21.19779132]
[1721912135104,389.2,167.02,166.9,21.19779132]
[1721912135321,389.2,167.01,166.91,35.5305]
[1721912135624,389.2,167.01,166.92,1.19775803]
[1721912135810,12.5161,167.03,166.98,5.9886]
[1721912136013,389.2,167.02,166.98,5.9886]
[1721912136818,389.2,167.02,167.01,5.9876]
[1721912137221,389.2,167.02,167.0,5.9879]
[1721912137422,389.2,167.02,166.99,5.9883]
[1721912138637,389.2,167.02,167.0,5.9879]
[1721912139130,389.2,167.02,166.99,5.9883]
[1721912139810,389.2,167.02,167.01,5.9876]
[1721912140026,389.2,167.02,166.98,5.9885]
[1721912140731,389.2,167.02,166.99,5.9883]
[1721912141252,389.2,167.03,166.99,5.9883]
[1721912141929,389.2,167.03,166.95,20.0]
[1721912142134,389.2,167.03,166.96,65.0]
[1721912142535,395.339,167.08,166.97,21.19746908]
[1721912142739,389.2,167.08,166.99,20.0]
[1721912142917,389.2,167.08,167.05,5.9861]
[1721912143117,395.1848,167.09,167.04,5.9865]
[1721912143420,389.2,167.09,167.04,5.9865]
[1721912143628,389.2,167.09,167.05,46.19716194]
[1721912143816,389.2,167.09,167.05,45.0]
[1721912144222,389.2,167.09,167.05,50.9861]
[1721912144531,389.2,167.09,167.06,5.9858]
[1721912145331,389.2,167.09,166.98,20.0]
[1721912145535,389.2,167.12,166.98,20.0]
[1721912145833,5.9858,167.06,167.01,5.9876]
[1721912146037,36.45744648,167.11,166.98,20.0]
[1721912146342,5.9863,167.05,167.0,5.9879]
[1721912146646,5.9866,167.04,166.99,5.9882]
[1721912147155,1.49702664,167.08,166.98,5.9887]
[1721912147437,1.49702664,167.08,166.93,6.375]
[1721912147438,5.988,167.0,166.95,5.9895]
[1721912147640,5.988,167.0,166.95,5.9897]
[1721912147846,5.9877,167.01,166.96,5.9894]
[1721912148213,27.48546558,167.0,166.94,5.9898]
[1721912148451,27.48546558,167.0,166.91,15.5305]
[1721912148623,7.48546558,167.0,166.91,15.5305]
[1721912148827,7.48546558,167.0,166.95,5.9897]
[1721912149150,5.9891,166.97,166.92,5.9905]
[1721912149342,5.9891,166.97,166.93,5.9904]
[1721912149640,5.9891,166.97,166.92,5.9908]
[1721912149842,5.9894,166.96,166.92,5.9908]
[1721912150048,20.0,166.99,166.88,6.2718]
[1721912150220,389.2,166.98,166.95,5.9897]
[1721912150532,389.2,167.0,166.89,20.0]
[1721912151039,389.2,167.0,166.9,66.19786548]
[1721912151334,389.2,167.0,166.98,5.9886]
[1721912151537,389.2,167.0,166.9,45.0]
[1721912151744,389.2,167.0,166.96,5.9891]
[1721912151919,389.2,167.0,166.91,20.0]
[1721912152114,389.2,167.0,166.92,66.19777868]
[1721912152421,389.2,167.0,166.93,20.0]
[1721912152623,389.2,167.0,166.94,45.0]
[1721912152817,389.2,167.0,166.99,5.9883]
[1721912153017,389.2,167.0,166.99,50.9883]
[1721912153439,389.2,167.0,166.99,5.9883]
[1721912153938,389.2,167.0,166.93,5.9902]
[1721912153939,5.9887,166.98,166.93,5.9902]
[1721912154938,389.2,167.0,166.9,20.0]
[1721912155133,389.2,167.0,166.99,5.9883]
[1721912156264,389.2,167.07,166.99,65.0]
[1721912156541,30.93,167.16,167.08,5.9848]
[1721912156542,5.9833,167.13,167.08,5.9848]
[1721912156851,389.2,167.12,167.08,5.9848]
[1721912157319,395.1838,167.12,167.07,5.9854]
[1721912157520,389.2,167.12,167.03,1.19699762]
[1721912157721,389.2,167.12,167.03,66.19699762]
[1721912158354,389.2,167.12,167.04,20.0]
[1721912158648,389.2,167.12,167.09,5.9847]
[1721912158857,389.2,167.12,167.08,5.985]
[1721912159032,395.1837,167.12,167.08,5.985]
[1721912159235,395.1837,167.12,167.07,5.9854]
[1721912159456,395.1837,167.12,167.08,45.0]
[1721912159631,5.9842,167.11,167.03,20.0]
[1721912159951,395.1838,167.12,167.07,5.9854]
[1721912160852,389.2,167.12,167.08,5.985]
[1721912161053,389.2,167.12,167.09,5.9846]
[1721912161225,5.983,167.14,167.09,5.9846]
[1721912161429,395.1822,167.17,167.12,5.9836]
[1721912162029,389.2,167.17,167.1,5.9842]
[1721912162339,5.9823,167.16,167.11,5.984]
[1721912162731,389.2,167.17,167.14,5.9828]
[1721912162932,389.2,167.17,167.12,5.9833]
[1721912163142,395.1819,167.17,167.12,5.9833]
[1721912163360,5.9824,167.16,167.11,5.9837]
[1721912163535,5.9824,167.16,167.12,45.0]
[1721912164152,5.9824,167.16,167.08,5.985]
[1721912164153,5.9834,167.13,167.08,5.985]
[1721912164356,1.49591132,167.16,167.08,5.9851]
[1721912164543,5.9833,167.13,167.08,5.9851]
[1721912164854,5.9837,167.12,167.08,5.9851]
[1721912165163,389.2,167.15,167.06,5.9857]
[1721912165327,389.2,167.15,167.08,5.985]
[1721912166053,5.9833,167.13,167.09,5.9847]
[1721912166363,5.983,167.14,167.09,5.9847]
[1721912168365,389.2,167.15,167.11,5.9838]
[1721912168666,5.9831,167.14,167.1,50.9844]
[1721912169233,389.2,167.15,167.11,5.9839]
[1721912169770,395.1826,167.15,167.11,5.9839]
[1721912169948,389.2,167.15,167.1,45.0]
[1721912170260,389.2,167.15,167.04,20.0]
[1721912170569,389.2,167.15,167.1,45.0]
[1721912170738,389.2,167.15,167.12,5.9836]
[1721912171056,389.2,167.15,167.07,20.0]
[1721912171355,389.2,167.15,167.12,5.9836]
[1721912171935,389.2,167.15,167.09,5.9846]
[1721912172165,5.9835,167.13,167.09,5.9846]
[1721912172847,389.2,167.15,167.1,5.9844]
[1721912173053,389.2,167.15,167.03,21.19692378]
[1721912173054,389.2,167.15,167.05,20.0]
[1721912173557,395.1827,167.15,167.1,5.9844]
[1721912174550,5.983,167.14,167.1,5.9844]
[1721912174747,395.1827,167.15,167.1,5.9844]
[1721912175059,395.1827,167.15,167.11,5.9839]
[1721912175647,5.9831,167.14,167.06,45.0]
[1721912175836,5.9833,167.13,167.09,5.9845]
[1721912176037,5.9831,167.14,167.09,5.9845]
[1721912176258,5.9831,167.14,167.1,5.9843]
[1721912176450,395.1827,167.15,167.1,5.9843]
[1721912177053,5.9827,167.15,167.11,5.984]
[1721912178363,5.9831,167.14,167.07,20.0]
[1721912178538,5.9831,167.14,167.08,45.0]
[1721912178964,5.9835,167.13,167.08,5.985]
[1721912179338,5.9837,167.12,167.08,5.985]
[1721912179538,5.9841,167.11,167.06,5.9855]
[1721912179755,5.9841,167.11,167.03,20.0]
[1721912180061,5.9837,167.12,167.08,5.9849]
[1721912180266,5.9834,167.13,167.08,5.9849]
[1721912180640,5.9838,167.12,167.08,5.9849]
[1721912181042,1.361294,167.11,167.08,5.9849]
[1721912181239,1.49625378,167.1,166.99,27.86853006]
[1721912181455,5.9844,167.1,167.05,5.9861]
[1721912181655,7.4809314,167.1,167.05,5.9861]
[1721912182057,7.4809314,167.1,167.06,5.9858]
[1721912182476,1.4965314,167.1,167.03,5.9868]
[1721912182768,5.9859,167.06,167.01,5.9875]
[1721912183072,389.2,167.05,167.01,5.9875]
[1721912183256,395.1864,167.05,167.01,5.9875]
[1721912183566,395.1864,167.05,166.94,6.5154]
[1721912183570,5.9886,166.99,166.94,6.5154]
[1721912183756,5.9878,167.01,166.93,20.0]
[1721912183956,5.9873,167.02,166.93,20.0]
[1721912184153,5.9873,167.02,166.97,5.9888]
[1721912184367,395.1869,167.03,166.98,5.9885]
[1721912184670,389.2,167.03,166.93,21.19772821]
[1721912184851,389.2,167.03,167.02,5.9873]
[1721912185158,395.1855,167.07,167.03,5.9869]
[1721912185474,389.2,167.07,167.06,5.9858]
[1721912186142,389.2,167.07,167.04,45.0]
[1721912186356,389.2,167.07,167.06,5.9858]
[1721912186555,389.2,167.07,167.06,50.9858]
[1721912186769,389.2,167.07,167.06,70.9858]
[1721912187567,1.361294,167.11,167.1,5.9844]
[1721912188348,1.361294,167.11,167.1,50.9844]
[1721912189364,1.361294,167.11,167.06,20.0]
[1721912189564,1.361294,167.11,167.07,45.0]
[1721912189767,1.361294,167.11,167.09,5.9847]
[1721912190278,1.361294,167.11,167.1,5.9844]
[1721912190684,1.361294,167.11,167.1,50.9844]
[1721912190875,1.361294,167.11,167.1,5.9844]
[1721912191171,1.361294,167.11,167.07,45.0]
[1721912191355,1.361294,167.11,167.09,5.9846]
[1721912191673,1.361294,167.11,167.07,5.9854]
[1721912191870,2.85764506,167.11,167.05,5.9858]
[1721912192068,5.9845,167.1,167.05,5.9858]
[1721912192874,5.9848,167.09,167.04,5.9864]
[1721912193060,1.49655815,167.08,167.04,5.9864]
[1721912193256,2.85784426,167.11,167.04,5.9864]
[1721912193576,2.85784426,167.11,166.99,6.6665]
[1721912193577,1.49662658,167.1,167.03,5.9868]
[1721912193756,5.9854,167.08,167.03,5.9868]
[1721912194075,7.4820674,167.08,167.03,5.9868]
[1721912194249,5.9854,167.08,167.04,5.9864]
[1721912194451,5.9855,167.07,167.03,5.9869]
[1721912195158,1.49677098,167.06,167.0,5.9879]
[1721912195360,7.48267098,167.06,167.01,5.9873]
[1721912195552,5.9863,167.05,167.0,5.9879]
[1721912195771,5.987,167.03,166.92,42.7116]
[1721912196075,389.2,167.02,166.93,1.1977313]
[1721912196377,389.2,167.02,167.0,5.9878]
[1721912196568,389.2,167.07,167.02,5.9871]
[1721912196767,395.1856,167.07,167.02,5.9871]
[1721912197882,1.49684051,167.06,167.02,5.9871]
[1721912198176,395.1856,167.07,167.02,5.9871]
[1721912199084,1.4968372,167.06,166.92,42.7116]
[1721912199287,389.2,167.05,166.92,42.7116]
[1721912199792,1.4971626,167.04,166.92,42.7116]
[1721912200090,5.987,167.03,166.98,5.9886]
[1721912200287,1.49716304,167.02,166.98,5.9886]
[1721912200784,7.48416543,167.03,166.98,5.9886]
[1721912200986,7.48416543,167.03,166.99,5.9883]
[1721912201164,389.2,167.02,166.99,5.9883]
[1721912201364,389.2,167.02,166.98,5.9886]
[1721912202055,389.2,167.02,166.99,5.9883]
[1721912202480,5.9879,167.01,166.92,42.7116]
[1721912202791,20.0,167.06,166.93,65.0]
[1721912202792,389.2,167.05,166.93,65.0]
[1721912202969,5.987,167.03,166.98,5.9884]
[1721912203166,5.987,167.03,166.93,65.0]
[1721912203582,5.987,167.03,166.98,5.9886]
[1721912203885,1.49716464,167.02,166.98,5.9886]
[1721912204272,390.6971643,167.01,166.93,20.0]
[1721912204480,390.6971643,167.01,166.89,7.86853006]
[1721912204660,390.6971643,167.01,166.92,5.9908]
[1721912204864,5.9892,166.97,166.92,5.9908]
[1721912205059,1.49760532,166.96,166.92,5.9908]
[1721912205280,1.49768752,166.95,166.91,5.9911]
[1721912205483,5.9894,166.96,166.91,5.9911]
[1721912205664,1.49779894,166.95,166.91,5.9911]
[1721912206296,1.49779894,166.95,166.85,8.67102176]
[1721912206485,389.2,166.94,166.85,8.67102176]
[1721912206667,395.1902,166.94,166.89,5.9918]
[1721912206870,1.49802128,166.93,166.89,5.9918]
[1721912207173,1.49802326,166.92,166.89,5.9918]
[1721912207367,395.1902,166.94,166.89,5.9918]
[1721912207568,389.2,166.94,166.85,0.8024917]
[1721912207785,389.2,166.94,166.9,5.9913]
[1721912208281,5.9909,166.92,166.87,5.9926]
[1721912208482,395.1904,166.94,166.85,0.8024917]
[1721912208666,1.49804252,166.93,166.85,0.8024917]
[1721912208863,1.49795263,166.92,166.87,5.9923]
[1721912209070,1.49795263,166.92,166.88,5.9921]
[1721912209372,5.9905,166.93,166.88,5.9921]
[1721912209691,389.2,166.92,166.88,5.9921]
[1721912210069,395.1909,166.92,166.88,5.9921]
[1721912210401,389.2,166.92,166.88,5.9921]
[1721912211787,389.2,166.92,166.89,5.9916]
[1721912212082,389.2,166.92,166.9,5.9915]
[1721912212286,389.2,166.92,166.85,0.8024917]
[1721912212669,389.2,166.92,166.88,5.9919]
[1721912212990,389.2,166.92,166.89,5.9918]
[1721912213177,389.2,166.92,166.91,5.9912]
[1721912213584,389.2,166.92,166.91,50.9912]
[1721912213775,389.2,166.92,166.91,70.9912]
[1721912214090,389.2,166.92,166.91,25.9912]
[1721912214397,389.2,166.92,166.91,5.9912]
[1721912214567,389.2,166.92,166.89,5.9918]
[1721912214903,389.2,166.92,166.85,0.8024917]
[1721912215069,389.2,166.92,166.87,5.9925]
[1721912215070,1.49801259,166.91,166.87,5.9925]
[1721912215578,390.69801259,166.91,166.87,5.9925]
[1721912216096,390.69801259,166.91,166.88,5.9922]
[1721912216277,390.69801259,166.91,166.87,5.9926]
[1721912216601,396.68921259,166.91,166.87,5.9926]
[1721912216913,389.2,166.9,166.85,0.8024917]
[1721912217193,1.49841835,166.89,166.85,6.7957917]
[1721912217486,409.2,166.9,166.85,0.8024917]
[1721912218293,389.2,166.9,166.85,0.8024917]
[1721912218596,389.2,166.9,166.86,5.9929]
[1721912219284,389.2,166.9,166.87,5.9926]
[1721912219588,389.2,166.9,166.88,5.9922]
[1721912220295,389.2,166.9,166.89,5.9919]
[1721912220596,389.2,166.9,166.85,0.8024917]
[1721912221310,6.5929,166.94,166.85,0.8024917]
[1721912221311,395.1897,166.96,166.86,1.19834855]
[1721912221476,389.2,166.96,166.86,66.19834855]
[1721912221675,395.1894,166.96,166.92,5.9905]
[1721912221881,5.9894,166.96,166.92,5.9905]
[1721912222200,395.1892,166.97,166.92,5.9908]
[1721912222395,5.9878,167.01,166.95,5.9895]
[1721912222696,5.9881,167.0,166.94,1.19784064]
[1721912222882,5.9877,167.01,166.94,1.19784064]
[1721912223072,395.2198,167.02,166.95,5.9897]
[1721912223073,5.9881,167.0,166.95,5.9897]
[1721912223485,395.2198,167.02,166.93,5.9904]
[1721912223702,5.9898,166.95,166.91,5.9911]
[1721912224073,14.97,167.0,166.91,5.9911]
[1721912224269,5.9902,166.94,166.9,5.9915]
[1721912224489,16.47019272,166.98,166.89,5.9918]
[1721912224896,5.9902,166.94,166.9,5.9915]
[1721912225085,5.9895,166.96,166.91,5.9912]
[1721912225287,5.9903,166.94,166.85,8.67102176]
[1721912225492,5.9903,166.94,166.9,5.9915]
[1721912225796,5.9903,166.94,166.85,8.67102176]
[1721912226093,5.9903,166.94,166.89,5.9917]
[1721912226477,5.9903,166.94,166.86,45.0]
[1721912226478,5.9903,166.94,166.9,5.9915]
[1721912227084,389.2,166.96,166.86,45.0]
[1721912227300,389.2,166.96,166.87,5.9926]
[1721912227301,20.0,166.95,166.87,5.9926]
[1721912227494,1.49801373,166.94,166.87,5.9926]
[1721912227798,5.9909,166.92,166.87,5.9926]
[1721912227990,5.9909,166.92,166.88,5.9923]
[1721912228389,5.9909,166.92,166.85,0.8024917]
[1721912228390,5.9909,166.92,166.87,5.9926]
[1721912228892,5.9914,166.91,166.86,5.9929]
[1721912229500,5.9908,166.93,166.85,0.8024917]
[1721912229677,5.9902,166.94,166.89,5.9918]
[1721912229878,5.9906,166.93,166.89,5.9918]
[1721912230100,5.9902,166.94,166.89,5.9918]
[1721912230293,1.49789766,166.94,166.89,5.9918]
[1721912230502,1.49789766,166.94,166.85,0.8024917]
[1721912230503,5.9913,166.91,166.87,5.9926]
[1721912230706,5.9909,166.92,166.87,5.9926]
[1721912230875,5.9909,166.92,166.88,5.9922]
[1721912231076,395.1905,166.93,166.85,0.8024917]
[1721912231291,389.2,166.93,166.89,5.9918]
[1721912231490,389.2,166.93,166.85,47.00084914]
[1721912231491,395.1906,166.93,166.88,5.9922]
[1721912232007,389.2,166.93,166.85,65.8024917]
[1721912232184,389.2,166.93,166.92,5.9908]
[1721912232383,12.0073,167.02,166.92,45.0]
[1721912232384,5.9884,166.99,166.92,45.0]
[1721912232596,389.2,167.01,166.95,5.9895]
[1721912232597,5.988,167.0,166.95,5.9895]
[1721912232800,395.188,167.0,166.95,5.9895]
[1721912232999,5.9876,167.01,166.93,1.19801536]
[1721912233299,5.9876,167.01,166.96,5.9893]
[1721912233495,5.988,167.0,166.96,5.9893]
[1721912233998,395.4366,167.07,166.97,45.0]
[1721912234204,389.2,167.08,166.98,1.19735793]
[1721912234398,389.2,167.08,167.04,5.9865]
[1721912234589,390.561294,167.11,167.04,5.9865]
[1721912234789,5.9856,167.07,167.02,5.9869]
[1721912234989,5.9851,167.08,167.03,50.9868]
[1721912235191,5.9851,167.08,167.04,5.9865]
[1721912235616,390.561294,167.11,167.04,5.9865]
[1721912235992,5.985,167.09,167.04,5.9865]
[1721912236292,390.561294,167.11,167.05,45.0]
[1721912237497,390.561294,167.11,167.07,5.9853]
[1721912238009,396.545394,167.11,167.06,5.9858]
[1721912238196,1.49626706,167.1,167.05,45.0]
[1721912238395,1.49626706,167.1,167.01,15.705]
[1721912238611,5.9854,167.08,167.03,5.9865]
[1721912238797,5.9854,167.08,167.04,45.0]
[1721912239116,5.9855,167.07,167.02,5.9872]
[1721912239316,390.561294,167.11,167.03,45.0]
[1721912239515,395.1844,167.1,167.05,5.9862]
[1721912239709,395.1844,167.1,167.06,5.9858]
[1721912240311,389.2,167.1,167.07,5.9853]
[1721912240619,389.2,167.1,167.08,5.985]
[1721912241612,389.2,167.1,167.09,5.9847]
[1721912241804,389.2,167.1,167.08,5.985]
[1721912242022,1.361294,167.11,167.03,21.19696372]
[1721912242308,1.361294,167.11,167.08,5.985]
[1721912242495,1.361294,167.11,167.07,5.9854]
[1721912242691,1.361294,167.11,167.08,50.9851]
[1721912242897,1.361294,167.11,167.07,5.9855]
[1721912243500,7.345494,167.11,167.06,5.9857]
[1721912243701,1.49623112,167.1,167.01,15.705]
[1721912243908,5.9852,167.08,167.03,5.9868]
[1721912244109,27.48093112,167.1,167.04,5.9862]
[1721912244291,5.9849,167.09,167.04,5.9862]
[1721912244611,25.9845,167.1,167.01,36.90220052]
[1721912244817,21.49635774,167.1,167.03,5.9869]
[1721912245023,1.49635774,167.1,167.03,5.9869]
[1721912245195,5.9861,167.06,167.01,21.6923]
[1721912245398,5.9855,167.07,167.02,50.9872]
[1721912245592,5.9851,167.08,167.03,5.9868]
[1721912246297,389.2,167.1,167.02,45.0]
[1721912246693,5.9849,167.09,167.02,45.0]
[1721912246908,389.2,167.1,167.05,5.9859]
[1721912247415,5.9849,167.09,167.04,5.9865]
[1721912247619,5.9848,167.09,167.04,5.9865]
[1721912248328,5.9848,167.09,167.05,50.9862]
[1721912248623,5.9859,167.06,167.02,50.9872]
[1721912248829,5.9856,167.07,167.02,50.9872]
[1721912249236,5.9851,167.08,167.03,5.9868]
[1721912250013,5.9865,167.04,166.97,21.9395]
[1721912250216,390.6965756,167.07,166.93,22.3098]